Workbook

Sheet h in terms of r
B1: Contours of the Volume
B2: Function for a Cone
B4: This DIGMath module lets you investigate
C5: the contour diagrams
B6: of the volume function V =ap r2h
B7: for a right-circular cone
B8: with h in terms of r.
A11: Three contours shown correspond to V = 10, V = 30, and V = 50.
A13: Select another value ( 0 to 50) for V = | E13: =G13 -> 19 | G13: 19
J14: Trace along the contours at r0 = | N14: =L15/10 -> 2.8
L15: 28 | M15: =a+L15*(b-a)/100 -> -1.76
B16: The interval used is from r = 0 to r = 10.
J18: At the tracing point r0 = | M18: =x0 -> 2.8
A19: Click each item below for suggestions and investigations
B20: Item 1 | J20: the value of h on the contour with V = 10 is | P20: =Sheet2!B11 -> 1.22
B21: Item 2 | J21: the value of h on the contour with V = 30 is | P21: =Sheet2!B24 -> 3.65
B22: Item 3 | J22: the value of h on the contour with V = 50 is | P22: =Sheet2!B34 -> 6.09
B23: Item 4 | J23: =" the value of h on the contour with V = "&TEXT(D,"#")&" is" -> the value of h on the contour with V = 19 is | P23: =Sheet2!B44 -> 2.31
B24: Item 5
A28: To access/download all the DIGMath Apps for Calculus
A29: Click this link: | C29: DIGMath for Calculus
A31: Created by: Sheldon P. Gordon
A32: Farmingdale State College
A33: Development of this module was supported by the
A34: NSF's Division of Undergraduate Education
A35: under grants DUE-0310123 and DUE-0442160.

Sheet r in terms of h
B1: Contours of the Volume
B2: Function for a Cone
B4: This DIGMath module lets you investigate
C5: the contour diagrams
B6: of the volume function V =ap r2h
B7: for a right-circular cone
B8: with r in terms of h.
A11: Three contours shown correspond to V = 10, V = 30, and V = 50.
A13: Select another value ( 0 to 50) for V = | E13: =G13 -> 21 | G13: 21
J14: Trace along the contours at h0 = | N14: =L15/10 -> 0.9
L15: 9 | M15: =a+L15*(b-a)/100 -> -3.28
B16: The interval used is from h = 0 to h = 10.
J18: At the tracing point h0 = | M18: =x00 -> 0.9
A19: Click each item below for suggestions and investigations
B20: Item 1 | J20: the value of r on the contour with V = 10 is | P20: =Sheet2!E11 -> 3.26
B21: Item 2 | J21: the value of r on the contour with V = 30 is | P21: =Sheet2!E24 -> 5.64
B22: Item 3 | J22: the value of r on the contour with V = 50 is | P22: =Sheet2!E34 -> 7.28
B23: Item 4 | J23: =" the value of r on the contour with V = "&TEXT(D,"#")&" is" -> the value of r on the contour with V = 19 is | P23: =Sheet2!E44 -> 4.72
B24: Item 5
A28: To access/download all the DIGMath Apps for Calculus
A29: Click this link: | C29: DIGMath for Calculus
A31: Created by: Sheldon P. Gordon
A32: Farmingdale State College
A33: Development of this module was supported by the
A34: NSF's Division of Undergraduate Education
A35: under grants DUE-0310123 and DUE-0442160.

Sheet Sheet2
A1: a = | B1: -4 | D1: a = | E1: -4 | G1: h | H1: V = 10 | I1: V = 30 | J1: V = 50 | K1: V = DD
A2: b = | B2: 4 | D2: b = | E2: 4 | G2: 0.01 | H2: =SQRT(3*10/G2/PI()) -> 30.9 | I2: =SQRT(3*30/G2/PI()) -> 53.5 | J2: =SQRT(3*50/G2/PI()) -> 69.1 | K2: =SQRT(3*DD/G2/PI()) -> 44.8
G3: 0.1 | H3: =SQRT(3*10/G3/PI()) -> 9.8 | I3: =SQRT(3*30/G3/PI()) -> 16.9 | J3: =SQRT(3*50/G3/PI()) -> 21.9 | K3: 14.2
G4: =G3+0.1 -> 0.2 | H4: 6.9 | I4: 12.0 | J4: 15.5 | K4: 10.0
G5: 0.3 | H5: 5.6 | I5: 9.8 | J5: 12.6 | K5: 8.2
A6: V = 10 | D6: V = 10 | G6: 0.4 | H6: 4.9 | I6: 8.5 | J6: 10.9 | K6: 7.1
A7: 0.1 | B7: =10/A7^2/PI()*3 -> 954.9 | D7: 0.1 | E7: =SQRT(3*10/D7/PI()) -> 9.8 | G7: 0.5 | H7: 4.4 | I7: 7.6 | J7: 9.8 | K7: 6.3
A8: 5 | B8: =10/A8^2/PI()*3 -> 0.4 | D8: 5 | E8: =SQRT(3*10/D8/PI()) -> 1.4 | G8: 0.6 | H8: 4.0 | I8: 6.9 | J8: 8.9 | K8: 5.8
A9: 10 | B9: 0.1 | D9: 10 | E9: 1.0 | G9: 0.7 | H9: 3.7 | I9: 6.4 | J9: 8.3 | K9: 5.4
G10: 0.8 | H10: 3.5 | I10: 6.0 | J10: 7.7 | K10: 5.0
A11: =x0 -> 2.8 | B11: 1.2 | D11: =x00 -> 0.9 | E11: 3.3 | G11: 0.9 | H11: 3.3 | I11: 5.6 | J11: 7.3 | K11: 4.7
A12: =x0 -> 2.8 | B12: 1.2 | D12: =x00 -> 0.9 | E12: 3.3 | G12: 1 | H12: 3.1 | I12: 5.4 | J12: 6.9 | K12: 4.5
G13: 1.1 | H13: 2.9 | I13: 5.1 | J13: 6.6 | K13: 4.3
A14: =x0 -> 2.8 | B14: 1.2 | D14: =x00 -> 0.9 | E14: 3.3 | G14: 1.2 | H14: 2.8 | I14: 4.9 | J14: 6.3 | K14: 4.1
G15: 1.3 | H15: 2.7 | I15: 4.7 | J15: 6.1 | K15: 3.9
A16: V =30 | D16: V =30 | G16: 1.4 | H16: 2.6 | I16: 4.5 | J16: 5.8 | K16: 3.8
A17: 0.1 | B17: =30/A17^2/PI()*3 -> 2864.8 | D17: 0.1 | E17: =SQRT(3*30/D17/PI()) -> 16.9 | G17: 1.5 | H17: 2.5 | I17: 4.4 | J17: 5.6 | K17: 3.7
A18: 5 | B18: =30/A18^2/PI()*3 -> 1.1 | D18: 5 | E18: =SQRT(3*30/D18/PI()) -> 2.4 | G18: 1.6 | H18: 2.4 | I18: 4.2 | J18: 5.5 | K18: 3.5
A19: 10 | B19: 0.3 | D19: 10 | E19: 1.7 | G19: 1.7 | H19: 2.4 | I19: 4.1 | J19: 5.3 | K19: 3.4
G20: 1.8 | H20: 2.3 | I20: 4.0 | J20: 5.2 | K20: 3.3
A21: =x0 -> 2.8 | B21: 3.7 | D21: =x00 -> 0.9 | E21: 5.6 | G21: 1.9 | H21: 2.2 | I21: 3.9 | J21: 5.0 | K21: 3.2
A22: =x0+0.2 -> 3 | B22: 3.2 | D22: =x00+0.2 -> 1.1 | E22: 5.1 | G22: 2 | H22: 2.2 | I22: 3.8 | J22: 4.9 | K22: 3.2
G23: 2.1 | H23: 2.1 | I23: 3.7 | J23: 4.8 | K23: 3.1
A24: =x0 -> 2.8 | B24: 3.7 | D24: =x00 -> 0.9 | E24: 5.6 | G24: 2.2 | H24: 2.1 | I24: 3.6 | J24: 4.7 | K24: 3.0
G25: 2.3 | H25: 2.0 | I25: 3.5 | J25: 4.6 | K25: 3.0
A26: V = 50 | D26: V = 50 | G26: 2.4 | H26: 2.0 | I26: 3.5 | J26: 4.5 | K26: 2.9
A27: 0.1 | B27: =50/A27^2/PI()*3 -> 4774.6 | D27: 0.1 | E27: =SQRT(3*50/D27/PI()) -> 21.9 | G27: 2.5 | H27: 2.0 | I27: 3.4 | J27: 4.4 | K27: 2.8
A28: 5 | B28: =50/A28^2/PI()*3 -> 1.9 | D28: 5 | E28: =SQRT(3*50/D28/PI()) -> 3.1 | G28: 2.6 | H28: 1.9 | I28: 3.3 | J28: 4.3 | K28: 2.8
A29: 10 | B29: 0.5 | D29: 10 | E29: 2.2 | G29: 2.7 | H29: 1.9 | I29: 3.3 | J29: 4.2 | K29: 2.7
G30: 2.8 | H30: 1.8 | I30: 3.2 | J30: 4.1 | K30: 2.7
A31: =x0 -> 2.8 | B31: 6.1 | D31: =x00 -> 0.9 | E31: 7.3 | G31: 2.9 | H31: 1.8 | I31: 3.1 | J31: 4.1 | K31: 2.6
A32: =A31 -> 2.8 | B32: 6.1 | D32: =D31 -> 0.9 | E32: 7.3 | G32: 3 | H32: 1.8 | I32: 3.1 | J32: 4.0 | K32: 2.6
G33: 3.1 | H33: 1.8 | I33: 3.0 | J33: 3.9 | K33: 2.5
A34: =x0 -> 2.8 | B34: 6.1 | D34: =x00 -> 0.9 | E34: 7.3 | G34: 3.2 | H34: 1.7 | I34: 3.0 | J34: 3.9 | K34: =SQRT(3*DD/G34/PI()) -> 2.5
G35: 3.3 | H35: 1.7 | I35: 2.9 | J35: 3.8 | K35: 2.5
A36: ="V ="&TEXT(DD,"#.#") -> V =21. | D36: ="V ="&TEXT(DD,"#.#") -> V =21. | G36: 3.4 | H36: 1.7 | I36: 2.9 | J36: 3.7 | K36: 2.4
A37: 0.1 | B37: =D/A37^2/PI()*3 -> 1814.4 | D37: 0.1 | E37: =SQRT(3*DD/D37/PI()) -> 14.2 | G37: 3.5 | H37: 1.7 | I37: 2.9 | J37: 3.7 | K37: 2.4
A38: 5 | B38: =D/A38^2/PI()*3 -> 0.7 | D38: 5 | E38: =SQRT(3*DD/D38/PI()) -> 2.0 | G38: 3.6 | H38: 1.6 | I38: 2.8 | J38: 3.6 | K38: 2.4
A39: 10 | B39: =D/A39^2/PI()*3 -> 0.2 | D39: 10 | E39: =SQRT(3*DD/D39/PI()) -> 1.4 | G39: 3.7 | H39: 1.6 | I39: 2.8 | J39: 3.6 | K39: 2.3
G40: 3.8 | H40: 1.6 | I40: 2.7 | J40: 3.5 | K40: 2.3
A41: =x0 -> 2.8 | B41: =D/A41^2/PI()*3 -> 2.3 | D41: =x00 -> 0.9 | E41: =SQRT(3*DD/D41/PI()) -> 4.7 | G41: 3.9 | H41: 1.6 | I41: 2.7 | J41: 3.5 | K41: 2.3
A42: =A41 -> 2.8 | B42: =D/A42^2/PI()*3 -> 2.3 | D42: =D41 -> 0.9 | E42: =SQRT(3*DD/D42/PI()) -> 4.7 | G42: 4 | H42: 1.5 | I42: 2.7 | J42: 3.5 | K42: 2.2
G43: 4.1 | H43: 1.5 | I43: 2.6 | J43: 3.4 | K43: 2.2
A44: =x0 -> 2.8 | B44: =D/A44^2/PI()*3 -> 2.3 | D44: =x00 -> 0.9 | E44: =SQRT(3*DD/D44/PI()) -> 4.7 | G44: 4.2 | H44: 1.5 | I44: 2.6 | J44: 3.4 | K44: 2.2
G45: 4.3 | H45: 1.5 | I45: 2.6 | J45: 3.3 | K45: 2.2
G46: 4.4 | H46: 1.5 | I46: 2.6 | J46: 3.3 | K46: 2.1
G47: 4.5 | H47: 1.5 | I47: 2.5 | J47: 3.3 | K47: 2.1
G48: 4.6 | H48: 1.4 | I48: 2.5 | J48: 3.2 | K48: 2.1
G49: 4.7 | H49: 1.4 | I49: 2.5 | J49: 3.2 | K49: 2.1
G50: 4.8 | H50: 1.4 | I50: 2.4 | J50: 3.2 | K50: 2.0
G51: 4.9 | H51: 1.4 | I51: 2.4 | J51: 3.1 | K51: 2.0
G52: 5 | H52: 1.4 | I52: 2.4 | J52: 3.1 | K52: 2.0
G53: 5.1 | H53: 1.4 | I53: 2.4 | J53: 3.1 | K53: 2.0
G54: 5.2 | H54: 1.4 | I54: 2.3 | J54: 3.0 | K54: 2.0
G55: 5.3 | H55: 1.3 | I55: 2.3 | J55: 3.0 | K55: 1.9
G56: 5.4 | H56: 1.3 | I56: 2.3 | J56: 3.0 | K56: 1.9
G57: 5.5 | H57: 1.3 | I57: 2.3 | J57: 2.9 | K57: 1.9
G58: 5.6 | H58: 1.3 | I58: 2.3 | J58: 2.9 | K58: 1.9
G59: 5.7 | H59: 1.3 | I59: 2.2 | J59: 2.9 | K59: 1.9
G60: 5.8 | H60: 1.3 | I60: 2.2 | J60: 2.9 | K60: 1.9
G61: 5.9 | H61: 1.3 | I61: 2.2 | J61: 2.8 | K61: 1.8
G62: 6 | H62: 1.3 | I62: 2.2 | J62: 2.8 | K62: 1.8
G63: 6.1 | H63: 1.3 | I63: 2.2 | J63: 2.8 | K63: 1.8
G64: 6.2 | H64: 1.2 | I64: 2.1 | J64: 2.8 | K64: 1.8
G65: 6.3 | H65: 1.2 | I65: 2.1 | J65: 2.8 | K65: 1.8
G66: 6.4 | H66: 1.2 | I66: 2.1 | J66: 2.7 | K66: =SQRT(3*DD/G66/PI()) -> 1.8
G67: 6.5 | H67: =SQRT(3*10/G67/PI()) -> 1.2 | I67: =SQRT(3*30/G67/PI()) -> 2.1 | J67: =SQRT(3*50/G67/PI()) -> 2.7 | K67: 1.8
G68: =G67+0.1 -> 6.6 | H68: 1.2 | I68: 2.1 | J68: 2.7 | K68: 1.7
G69: 6.7 | H69: 1.2 | I69: 2.1 | J69: 2.7 | K69: 1.7
G70: 6.8 | H70: 1.2 | I70: 2.1 | J70: 2.6 | K70: 1.7
G71: 6.9 | H71: 1.2 | I71: 2.0 | J71: 2.6 | K71: 1.7
G72: 7 | H72: 1.2 | I72: 2.0 | J72: 2.6 | K72: 1.7
G73: 7.1 | H73: 1.2 | I73: 2.0 | J73: 2.6 | K73: 1.7
G74: 7.2 | H74: 1.2 | I74: 2.0 | J74: 2.6 | K74: 1.7
G75: 7.3 | H75: 1.1 | I75: 2.0 | J75: 2.6 | K75: 1.7
G76: 7.4 | H76: 1.1 | I76: 2.0 | J76: 2.5 | K76: 1.6
G77: 7.5 | H77: 1.1 | I77: 2.0 | J77: 2.5 | K77: 1.6
G78: 7.6 | H78: 1.1 | I78: 1.9 | J78: 2.5 | K78: 1.6
G79: 7.7 | H79: 1.1 | I79: 1.9 | J79: 2.5 | K79: 1.6
G80: 7.8 | H80: 1.1 | I80: 1.9 | J80: 2.5 | K80: 1.6
G81: 7.9 | H81: 1.1 | I81: 1.9 | J81: 2.5 | K81: 1.6
G82: 8 | H82: 1.1 | I82: 1.9 | J82: 2.4 | K82: 1.6
G83: 8.1 | H83: 1.1 | I83: 1.9 | J83: 2.4 | K83: 1.6
G84: 8.2 | H84: 1.1 | I84: 1.9 | J84: 2.4 | K84: 1.6
G85: 8.3 | H85: 1.1 | I85: 1.9 | J85: 2.4 | K85: 1.6
G86: 8.4 | H86: 1.1 | I86: 1.8 | J86: 2.4 | K86: 1.5
G87: 8.5 | H87: 1.1 | I87: 1.8 | J87: 2.4 | K87: 1.5
G88: 8.6 | H88: 1.1 | I88: 1.8 | J88: 2.4 | K88: 1.5
G89: 8.7 | H89: 1.0 | I89: 1.8 | J89: 2.3 | K89: 1.5
G90: 8.8 | H90: 1.0 | I90: 1.8 | J90: 2.3 | K90: 1.5
G91: 8.9 | H91: 1.0 | I91: 1.8 | J91: 2.3 | K91: 1.5
G92: 9 | H92: 1.0 | I92: 1.8 | J92: 2.3 | K92: 1.5
G93: 9.1 | H93: 1.0 | I93: 1.8 | J93: 2.3 | K93: 1.5
G94: 9.2 | H94: 1.0 | I94: 1.8 | J94: 2.3 | K94: 1.5
G95: 9.3 | H95: 1.0 | I95: 1.8 | J95: 2.3 | K95: 1.5
G96: 9.4 | H96: 1.0 | I96: 1.7 | J96: 2.3 | K96: 1.5
G97: 9.5 | H97: 1.0 | I97: 1.7 | J97: 2.2 | K97: 1.5
G98: 9.6 | H98: 1.0 | I98: 1.7 | J98: 2.2 | K98: 1.4
G99: 9.7 | H99: 1.0 | I99: 1.7 | J99: 2.2 | K99: 1.4
G100: 9.8 | H100: 1.0 | I100: 1.7 | J100: 2.2 | K100: 1.4
G101: 9.9 | H101: 1.0 | I101: 1.7 | J101: 2.2 | K101: 1.4
G102: 10 | H102: 1.0 | I102: 1.7 | J102: 2.2 | K102: 1.4
